[Event "Elitserien 2019/2020, round 7-9"]
[Site "Elite stadshotellet, Kungsgatan 6, Vaxjo, Sweden"]
[Date "2020.10.17"]
[Round "2.8"]
[White "Nordstrom, Felix"]
[Black "Kucuksari, Kaan"]
[Result "0-1"]
[TimeControl "90 minutes for 40 moves + 30 minutes for the rest of the game + 30 seconds per move from move one."]
[WhiteTitle "FM"]
[BlackTitle "FM"]
[WhiteFideId "1701509"]
[BlackFideId "6380166"]
[WhiteElo "2096"]
[BlackElo "2308"]

1. d4 {[%clk 01:30:56]} {[%emt 00:00:03]} Nf6 {[%clk 01:30:55]} {[%emt
00:00:06]} 2. c4 {[%clk 01:31:03]} {[%emt 00:00:22]} e6 {[%clk 01:31:19]}
{[%emt 00:00:06]} 3. Nc3 {[%clk 01:30:58]} {[%emt 00:00:35]} Bb4 {[%clk
01:31:43]} {[%emt 00:00:06]} 4. Qc2 {[%clk 01:30:24]} {[%emt 00:01:04]} O-O
{[%clk 01:32:00]} {[%emt 00:00:13]} 5. a3 {[%clk 01:30:16]} {[%emt 00:00:39]}
Bxc3+ {[%clk 01:32:25]} {[%emt 00:00:05]} 6. Qxc3 {[%clk 01:30:44]} {[%emt
00:00:02]} b6 {[%clk 01:32:42]} {[%emt 00:00:14]} 7. Bg5 {[%clk 01:30:32]}
{[%emt 00:00:41]} Bb7 {[%clk 01:32:52]} {[%emt 00:00:20]} 8. Nf3 {[%clk
01:28:39]} {[%emt 00:02:22]} d6 {[%clk 01:30:11]} {[%emt 00:03:12]} 9. e3
{[%clk 01:27:22]} {[%emt 00:01:47]} Nbd7 {[%clk 01:29:07]} {[%emt 00:01:34]} 10.
Nd2 {[%clk 01:24:49]} {[%emt 00:03:03]} c5 {[%clk 01:27:34]} {[%emt 00:02:03]}
11. dxc5 {[%clk 01:21:28]} {[%emt 00:03:51]} bxc5 {[%clk 01:27:03]} {[%emt
00:01:01]} 12. Bd3 {[%clk 01:12:53]} {[%emt 00:09:05]} h6 {[%clk 01:23:13]}
{[%emt 00:04:20]} 13. Bxf6 {[%clk 01:12:17]} {[%emt 00:01:06]} Qxf6 {[%clk
01:20:55]} {[%emt 00:02:48]} 14. Qxf6 {[%clk 01:11:16]} {[%emt 00:01:32]} Nxf6
{[%clk 01:21:23]} {[%emt 00:00:02]} 15. O-O {[%clk 01:07:10]} {[%emt 00:04:35]}
a5 {[%clk 01:21:33]} {[%emt 00:00:20]} 16. b3 {[%clk 01:04:31]} {[%emt
00:03:09]} Rfb8 {[%clk 01:20:39]} {[%emt 00:01:24]} 17. Rab1 {[%clk 00:58:48]}
{[%emt 00:06:13]} Bc6 {[%clk 01:20:35]} {[%emt 00:00:34]} 18. Rfc1 {[%clk
00:56:15]} {[%emt 00:03:03]} Kf8 {[%clk 01:20:12]} {[%emt 00:00:53]} 19. f3
{[%clk 00:56:10]} {[%emt 00:00:34]} Ke7 {[%clk 01:19:48]} {[%emt 00:00:54]} 20.
Kf2 {[%clk 00:56:24]} {[%emt 00:00:16]} Rb6 {[%clk 01:17:24]} {[%emt 00:02:53]}
21. Ke2 {[%clk 00:50:34]} {[%emt 00:06:21]} Rab8 {[%clk 01:16:31]} {[%emt
00:01:23]} 22. h4 {[%clk 00:48:04]} {[%emt 00:03:01]} Nd7 {[%clk 01:16:01]}
{[%emt 00:01:00]} 23. Rc3 {[%clk 00:39:19]} {[%emt 00:09:15]} Ne5 {[%clk
01:14:54]} {[%emt 00:01:37]} 24. Bc2 {[%clk 00:39:07]} {[%emt 00:00:41]} f5
{[%clk 01:03:53]} {[%emt 00:11:32]} 25. f4 {[%clk 00:30:59]} {[%emt 00:08:39]}
Ng4 {[%clk 00:52:47]} {[%emt 00:11:35]} 26. e4 {[%clk 00:29:05]} {[%emt
00:02:24]} g6 {[%clk 00:45:02]} {[%emt 00:08:15]} 27. h5 {[%clk 00:23:31]}
{[%emt 00:06:05]} gxh5 {[%clk 00:36:29]} {[%emt 00:09:03]} 28. exf5 {[%clk
00:19:56]} {[%emt 00:04:05]} Bxg2 {[%clk 00:32:58]} {[%emt 00:04:01]} 29. fxe6
{[%clk 00:18:06]} {[%emt 00:02:20]} Rf8 {[%clk 00:31:05]} {[%emt 00:02:23]} 30.
Rg3 {[%clk 00:17:16]} {[%emt 00:01:20]} Bc6 {[%clk 00:29:54]} {[%emt 00:01:41]}
31. f5 {[%clk 00:17:09]} {[%emt 00:00:37]} Rg8 {[%clk 00:24:31]} {[%emt
00:05:53]} 32. Rbg1 {[%clk 00:16:08]} {[%emt 00:01:30]} Rg5 {[%clk 00:24:31]}
{[%emt 00:00:31]} 33. Nf3 {[%clk 00:13:08]} {[%emt 00:03:30]} Bxf3+ {[%clk
00:24:27]} {[%emt 00:00:34]} 34. Rxf3 {[%clk 00:09:45]} {[%emt 00:03:53]} Nf6
{[%clk 00:09:24]} {[%emt 00:15:33]} 35. Rfg3 {[%clk 00:08:51]} {[%emt
00:01:24]} Rg4 {[%clk 00:09:51]} {[%emt 00:00:03]} 36. Kd3 {[%clk 00:02:59]}
{[%emt 00:06:22]} Rb8 {[%clk 00:05:56]} {[%emt 00:04:25]} 37. Bd1 {[%clk
00:02:46]} {[%emt 00:00:43]} a4 {[%clk 00:01:38]} {[%emt 00:04:48]} 38. bxa4
{[%clk 00:01:11]} {[%emt 00:02:04]} Rxg3+ {[%clk 00:01:33]} {[%emt 00:00:35]}
39. Rxg3 {[%clk 00:01:28]} {[%emt 00:00:13]} Ng4 {[%clk 00:02:02]} 40. Kc3
{[%clk 00:00:35]} {[%emt 00:01:24]} Rg8 {[%clk 00:01:38]} {[%emt 00:00:54]} 41.
Kd2 {[%clk 00:21:05]} {[%emt 00:09:59]} Kf6 {[%clk 00:31:53]} {[%emt 00:00:16]}
42. Rh3 {[%clk 00:14:33]} {[%emt 00:07:02]} Kg5 {[%clk 00:30:06]} {[%emt
00:02:17]} 43. Rxh5+ {[%clk 00:09:02]} {[%emt 00:06:01]} Kxh5 {[%clk 00:28:58]}
{[%emt 00:01:38]} 44. f6 {[%clk 00:08:40]} {[%emt 00:00:52]} Kg6 {[%clk
00:27:01]} {[%emt 00:02:27]} 45. Bxg4 {[%clk 00:05:37]} {[%emt 00:03:33]} Kxf6
{[%clk 00:27:16]} {[%emt 00:00:15]} 46. Bf3 {[%clk 00:06:02]} {[%emt 00:00:05]}
Rg7 {[%clk 00:20:27]} {[%emt 00:07:19]} 47. Bd5 {[%clk 00:01:59]} {[%emt
00:04:33]} Ra7 {[%clk 00:13:37]} {[%emt 00:07:20]} 48. Kc3 {[%clk 00:01:16]}
{[%emt 00:01:14]} Rxa4 {[%clk 00:13:59]} {[%emt 00:00:08]} 49. Kb3 {[%clk
00:01:37]} {[%emt 00:00:09]} Ra7 {[%clk 00:14:20]} {[%emt 00:00:07]} 50. a4
{[%clk 00:01:43]} {[%emt 00:00:26]} h5 {[%clk 00:14:26]} {[%emt 00:00:24]} 51.
Bc6 {[%clk 00:00:39]} {[%emt 00:01:33]} Kxe6 {[%clk 00:14:41]} {[%emt
00:00:16]} 52. Kc3 {[%clk 00:00:59]} {[%emt 00:00:10]} h4 {[%clk 00:14:30]}
{[%emt 00:00:41]} 53. Kd3 {[%clk 00:01:20]} {[%emt 00:00:09]} h3 {[%clk
00:14:51]} {[%emt 00:00:10]} 54. Ke3 {[%clk 00:01:36]} {[%emt 00:00:13]} h2
{[%clk 00:15:09]} {[%emt 00:00:12]} 55. Kf2 {[%clk 00:01:27]} {[%emt 00:00:39]}
Rh7 {[%clk 00:14:35]} {[%emt 00:01:03]} 56. Bh1 {[%clk 00:01:36]} {[%emt
00:00:22]} Rg7 {[%clk 00:14:57]} {[%emt 00:00:07]} 57. Bg2 {[%clk 00:01:22]}
{[%emt 00:00:45]} Ke5 {[%clk 00:15:16]} {[%emt 00:00:11]} 58. a5 {[%clk
00:01:17]} {[%emt 00:00:35]} Kd4 {[%clk 00:15:12]} {[%emt 00:00:34]} 59. a6
{[%clk 00:00:44]} {[%emt 00:01:02]} Ra7 {[%clk 00:15:35]} {[%emt 00:00:07]} 0-1

[Event "Elitserien 2019/2020, round 7-9"]
[Site "Elite stadshotellet, Kungsgatan 6, Vaxjo, Sweden"]
[Date "2020.10.17"]
[Round "2.9"]
[White "Blomqvist, Erik"]
[Black "Hauge, Lars Oskar"]
[Result "1/2-1/2"]
[TimeControl "90 minutes for 40 moves + 30 minutes for the rest of the game + 30 seconds per move from move one."]
[WhiteTitle "GM"]
[BlackTitle "IM"]
[WhiteFideId "1709437"]
[BlackFideId "1509276"]
[WhiteElo "2539"]
[BlackElo "2493"]

1. e4 {[%clk 01:30:53]} {[%emt 00:00:06]} c5 {[%clk 01:27:35]} {[%emt
00:03:26]} 2. Nf3 {[%clk 01:30:25]} {[%emt 00:00:57]} d6 {[%clk 01:27:33]}
{[%emt 00:00:33]} 3. Bb5+ {[%clk 01:27:38]} {[%emt 00:03:17]} Bd7 {[%clk
01:27:27]} {[%emt 00:00:36]} 4. Bxd7+ {[%clk 01:27:51]} {[%emt 00:00:17]} Qxd7
{[%clk 01:27:51]} {[%emt 00:00:06]} 5. c4 {[%clk 01:27:09]} {[%emt 00:01:12]}
g6 {[%clk 01:26:59]} {[%emt 00:01:23]} 6. d4 {[%clk 01:26:32]} {[%emt
00:01:06]} cxd4 {[%clk 01:27:04]} {[%emt 00:00:25]} 7. Nxd4 {[%clk 01:25:54]}
{[%emt 00:01:07]} Bg7 {[%clk 01:26:56]} {[%emt 00:00:39]} 8. Nc3 {[%clk
01:24:06]} {[%emt 00:02:18]} Nf6 {[%clk 01:23:50]} {[%emt 00:03:35]} 9. f3
{[%clk 01:19:58]} {[%emt 00:04:38]} Qc7 {[%clk 01:15:58]} {[%emt 00:08:23]} 10.
b3 {[%clk 01:18:26]} {[%emt 00:02:01]} Qa5 {[%clk 01:15:59]} {[%emt 00:00:28]}
11. Qd3 {[%clk 01:12:22]} {[%emt 00:06:34]} Nc6 {[%clk 01:12:01]} {[%emt
00:04:29]} 12. Be3 {[%clk 01:11:59]} {[%emt 00:00:51]} Nd7 {[%clk 01:09:51]}
{[%emt 00:02:42]} 13. Rc1 {[%clk 01:08:58]} {[%emt 00:03:28]} O-O {[%clk
00:58:02]} {[%emt 00:12:21]} 14. O-O {[%clk 00:59:07]} {[%emt 00:10:21]} Bxd4
{[%clk 00:51:55]} {[%emt 00:06:38]} 15. Bxd4 {[%clk 00:59:28]} {[%emt
00:00:08]} Nde5 {[%clk 00:49:39]} {[%emt 00:02:47]} 16. Qd2 {[%clk 00:57:41]}
{[%emt 00:02:16]} Nxd4 {[%clk 00:49:09]} {[%emt 00:01:01]} 17. Qxd4 {[%clk
00:58:05]} {[%emt 00:00:06]} Nc6 {[%clk 00:41:58]} {[%emt 00:07:42]} 18. Qf2
{[%clk 00:52:49]} {[%emt 00:05:45]} Qc5 {[%clk 00:40:13]} {[%emt 00:02:15]} 19.
Rfd1 {[%clk 00:52:21]} {[%emt 00:00:58]} Rfd8 {[%clk 00:39:06]} {[%emt
00:01:37]} 20. Nd5 {[%clk 00:50:56]} {[%emt 00:01:55]} Qxf2+ {[%clk 00:38:28]}
{[%emt 00:01:09]} 21. Kxf2 {[%clk 00:51:21]} {[%emt 00:00:04]} Rac8 {[%clk
00:37:12]} {[%emt 00:01:46]} 22. Rd2 {[%clk 00:45:21]} {[%emt 00:06:30]} Kf8
{[%clk 00:34:23]} {[%emt 00:03:18]} 23. Rcd1 {[%clk 00:44:56]} {[%emt
00:00:55]} Rb8 {[%clk 00:33:54]} {[%emt 00:01:00]} 24. f4 {[%clk 00:35:44]}
{[%emt 00:09:41]} Rdc8 {[%clk 00:28:45]} {[%emt 00:05:40]} 25. g4 {[%clk
00:33:35]} {[%emt 00:02:39]} Nd8 {[%clk 00:27:41]} {[%emt 00:01:34]} 26. f5
{[%clk 00:21:50]} {[%emt 00:12:15]} f6 {[%clk 00:17:20]} {[%emt 00:10:52]} 27.
h4 {[%clk 00:15:15]} {[%emt 00:07:04]} b5 {[%clk 00:14:32]} {[%emt 00:03:18]}
28. cxb5 {[%clk 00:07:24]} {[%emt 00:08:21]} Rxb5 {[%clk 00:14:39]} {[%emt
00:00:24]} 29. Ne3 {[%clk 00:07:12]} {[%emt 00:00:41]} Nf7 {[%clk 00:13:17]}
{[%emt 00:01:52]} 30. Nc4 {[%clk 00:06:56]} {[%emt 00:00:46]} Ne5 {[%clk
00:10:22]} {[%emt 00:03:25]} 31. Nxe5 {[%clk 00:07:00]} {[%emt 00:00:26]}
1/2-1/2

[Event "Elitserien 2019/2020, round 7-9"]
[Site "Elite stadshotellet, Kungsgatan 6, Vaxjo, Sweden"]
[Date "2020.10.17"]
[Round "2.10"]
[White "Westerberg, Jonathan"]
[Black "Barkhagen, Jonas"]
[Result "1/2-1/2"]
[TimeControl "90 minutes for 40 moves + 30 minutes for the rest of the game + 30 seconds per move from move one."]
[WhiteTitle "IM"]
[BlackTitle "IM"]
[WhiteFideId "1701754"]
[BlackFideId "1700855"]
[WhiteElo "2556"]
[BlackElo "2430"]

1. d4 {[%clk 01:28:10]} {[%emt 00:02:49]} d5 {[%clk 01:30:42]} {[%emt
00:00:18]} 2. c4 {[%clk 01:27:30]} {[%emt 00:01:10]} c6 {[%clk 01:31:06]}
{[%emt 00:00:06]} 3. cxd5 {[%clk 01:27:30]} {[%emt 00:00:30]} cxd5 {[%clk
01:31:29]} {[%emt 00:00:07]} 4. Nc3 {[%clk 01:27:54]} {[%emt 00:00:06]} Nf6
{[%clk 01:28:36]} {[%emt 00:03:23]} 5. Nf3 {[%clk 01:27:44]} {[%emt 00:00:40]}
Nc6 {[%clk 01:28:57]} {[%emt 00:00:09]} 6. Bf4 {[%clk 01:27:49]} {[%emt
00:00:25]} a6 {[%clk 01:29:14]} {[%emt 00:00:14]} 7. e3 {[%clk 01:26:11]}
{[%emt 00:02:07]} Bg4 {[%clk 01:29:35]} {[%emt 00:00:08]} 8. Be2 {[%clk
01:22:34]} {[%emt 00:04:08]} Bxf3 {[%clk 01:29:36]} {[%emt 00:00:29]} 9. Bxf3
{[%clk 01:21:59]} {[%emt 00:01:05]} e6 {[%clk 01:30:01]} {[%emt 00:00:06]} 10.
O-O {[%clk 01:20:03]} {[%emt 00:02:26]} Bd6 {[%clk 01:30:02]} {[%emt 00:00:28]}
11. Bxd6 {[%clk 01:17:42]} {[%emt 00:02:52]} Qxd6 {[%clk 01:30:25]} {[%emt
00:00:06]} 12. Na4 {[%clk 01:12:36]} {[%emt 00:05:36]} O-O {[%clk 01:24:01]}
{[%emt 00:06:54]} 13. Rc1 {[%clk 01:05:35]} {[%emt 00:07:31]} Rac8 {[%clk
01:04:36]} {[%emt 00:19:54]} 14. Nc5 {[%clk 00:49:21]} {[%emt 00:16:45]} Rc7
{[%clk 00:50:02]} {[%emt 00:15:03]} 15. Qb3 {[%clk 00:48:08]} {[%emt 00:01:44]}
Rb8 {[%clk 00:32:53]} {[%emt 00:17:37]} 16. Qb6 {[%clk 00:41:18]} {[%emt
00:07:12]} Ne8 {[%clk 00:29:30]} {[%emt 00:04:02]} 17. Qb3 {[%clk 00:32:32]}
{[%emt 00:09:15]} Na5 {[%clk 00:25:34]} {[%emt 00:04:27]} 18. Qb4 {[%clk
00:30:39]} {[%emt 00:02:22]} Nc6 {[%clk 00:25:48]} {[%emt 00:00:18]} 19. Qd2
{[%clk 00:27:31]} {[%emt 00:03:38]} Rbc8 {[%clk 00:22:57]} {[%emt 00:03:19]} 20.
Rc3 {[%clk 00:25:27]} {[%emt 00:02:36]} Qe7 {[%clk 00:20:56]} {[%emt 00:02:29]}
21. Rfc1 {[%clk 00:24:57]} {[%emt 00:01:01]} Nd6 {[%clk 00:19:49]} {[%emt
00:01:36]} 22. Nd3 {[%clk 00:23:47]} {[%emt 00:01:41]} g6 {[%clk 00:17:50]}
{[%emt 00:02:29]} 23. a4 {[%clk 00:20:50]} {[%emt 00:03:27]} Kf8 {[%clk
00:13:57]} {[%emt 00:04:22]} 24. b3 {[%clk 00:20:13]} {[%emt 00:01:07]} 1/2-1/2

[Event "Elitserien 2019/2020, round 7-9"]
[Site "Elite stadshotellet, Kungsgatan 6, Vaxjo, Sweden"]
[Date "2020.10.17"]
[Round "2.11"]
[White "Socko, Bartosz"]
[Black "Seo, Jung Min"]
[Result "1/2-1/2"]
[TimeControl "90 minutes for 40 moves + 30 minutes for the rest of the game + 30 seconds per move from move one."]
[WhiteTitle "GM"]
[BlackTitle "FM"]
[WhiteFideId "1107038"]
[BlackFideId "1734687"]
[WhiteElo "2619"]
[BlackElo "2448"]

1. d4 {[%clk 01:30:56]} {[%emt 00:00:03]} d5 {[%clk 01:30:38]} {[%emt
00:00:22]} 2. c4 {[%clk 01:31:20]} {[%emt 00:00:06]} c6 {[%clk 01:31:04]}
{[%emt 00:00:05]} 3. Nf3 {[%clk 01:31:43]} {[%emt 00:00:07]} Nf6 {[%clk
01:31:12]} {[%emt 00:00:23]} 4. Nbd2 {[%clk 01:32:04]} {[%emt 00:00:08]} g6
{[%clk 01:29:16]} {[%emt 00:02:25]} 5. g3 {[%clk 01:32:16]} {[%emt 00:00:19]}
Bg7 {[%clk 01:29:39]} {[%emt 00:00:07]} 6. Bg2 {[%clk 01:32:43]} {[%emt
00:00:03]} O-O {[%clk 01:28:05]} {[%emt 00:02:04]} 7. O-O {[%clk 01:33:08]}
{[%emt 00:00:05]} Bf5 {[%clk 01:25:11]} {[%emt 00:03:25]} 8. b3 {[%clk
01:33:13]} {[%emt 00:00:25]} Nbd7 {[%clk 01:21:05]} {[%emt 00:04:36]} 9. Bb2
{[%clk 01:32:58]} {[%emt 00:00:44]} Ne4 {[%clk 01:19:45]} {[%emt 00:01:51]} 10.
Nh4 {[%clk 01:27:11]} {[%emt 00:06:17]} Nxd2 {[%clk 01:19:57]} {[%emt
00:00:18]} 11. Qxd2 {[%clk 01:27:35]} {[%emt 00:00:06]} Be6 {[%clk 01:20:23]}
{[%emt 00:00:04]} 12. e4 {[%clk 01:25:35]} {[%emt 00:02:29]} dxe4 {[%clk
01:19:16]} {[%emt 00:01:37]} 13. Bxe4 {[%clk 01:25:30]} {[%emt 00:00:35]} Bh3
{[%clk 01:17:59]} {[%emt 00:01:48]} 14. Rfe1 {[%clk 01:22:28]} {[%emt
00:03:31]} Nf6 {[%clk 01:15:25]} {[%emt 00:03:04]} 15. Bg2 {[%clk 01:20:37]}
{[%emt 00:02:21]} Bxg2 {[%clk 01:15:47]} {[%emt 00:00:08]} 16. Kxg2 {[%clk
01:20:38]} {[%emt 00:00:28]} Qc7 {[%clk 01:11:37]} {[%emt 00:04:40]} 17. Nf3
{[%clk 01:19:30]} {[%emt 00:01:39]} Rad8 {[%clk 01:10:36]} {[%emt 00:01:32]} 18.
a4 {[%clk 01:19:34]} {[%emt 00:00:26]} e6 {[%clk 01:08:26]} {[%emt 00:02:39]}
19. Rad1 {[%clk 01:15:37]} {[%emt 00:04:27]} Rfe8 {[%clk 01:05:18]} {[%emt
00:03:39]} 20. Bc3 {[%clk 01:14:30]} {[%emt 00:01:37]} b6 {[%clk 01:01:39]}
{[%emt 00:04:08]} 21. Qb2 {[%clk 01:13:53]} {[%emt 00:01:06]} Nd7 {[%clk
00:59:34]} {[%emt 00:02:36]} 22. Qc1 {[%clk 01:10:49]} {[%emt 00:03:34]} Qb7
{[%clk 00:56:35]} {[%emt 00:03:29]} 23. Qc2 {[%clk 01:04:46]} {[%emt 00:06:32]}
Qc7 {[%clk 00:48:10]} {[%emt 00:08:56]} 24. Bd2 {[%clk 01:00:32]} {[%emt
00:04:45]} c5 {[%clk 00:42:12]} {[%emt 00:06:28]} 25. Bg5 {[%clk 00:57:35]}
{[%emt 00:03:27]} Nf6 {[%clk 00:37:21]} {[%emt 00:05:21]} 26. d5 {[%clk
00:54:36]} {[%emt 00:03:28]} exd5 {[%clk 00:37:14]} {[%emt 00:00:38]} 27. Rxe8+
{[%clk 00:54:04]} {[%emt 00:01:02]} Rxe8 {[%clk 00:37:37]} {[%emt 00:00:07]} 28.
Bxf6 {[%clk 00:54:27]} {[%emt 00:00:06]} Bxf6 {[%clk 00:38:05]} {[%emt
00:00:03]} 29. Rxd5 {[%clk 00:54:41]} {[%emt 00:00:14]} Kg7 {[%clk 00:36:35]}
{[%emt 00:02:01]} 30. Qd3 {[%clk 00:50:40]} {[%emt 00:04:31]} Re7 {[%clk
00:36:11]} {[%emt 00:00:55]} 31. Rd6 {[%clk 00:48:46]} {[%emt 00:02:23]} Be5
{[%clk 00:34:02]} {[%emt 00:02:39]} 32. Rd5 {[%clk 00:42:03]} {[%emt 00:07:12]}
Bf6 {[%clk 00:34:25]} {[%emt 00:00:07]} 33. h4 {[%clk 00:42:01]} {[%emt
00:00:32]} h5 {[%clk 00:34:16]} {[%emt 00:00:39]} 34. Rd6 {[%clk 00:42:24]}
{[%emt 00:00:07]} Be5 {[%clk 00:32:53]} {[%emt 00:01:53]} 35. Rd8 {[%clk
00:38:50]} {[%emt 00:04:03]} Bf6 {[%clk 00:31:58]} {[%emt 00:01:25]} 36. Qd5
{[%clk 00:36:30]} {[%emt 00:02:50]} Qb7 {[%clk 00:31:11]} {[%emt 00:01:17]} 37.
Qxb7 {[%clk 00:35:59]} {[%emt 00:01:00]} Rxb7 {[%clk 00:31:39]} {[%emt
00:00:02]} 38. Rd5 {[%clk 00:35:49]} {[%emt 00:00:40]} Kf8 {[%clk 00:29:46]}
{[%emt 00:02:23]} 39. Nd2 {[%clk 00:35:09]} {[%emt 00:01:10]} Ke8 {[%clk
00:28:09]} {[%emt 00:02:07]} 40. Ne4 {[%clk 00:35:09]} {[%emt 00:00:30]} Be7
{[%clk 00:28:34]} {[%emt 00:00:05]} 41. Kf3 {[%clk 00:34:57]} {[%emt 00:00:42]}
Rc7 {[%clk 00:27:17]} {[%emt 00:01:47]} 42. Nc3 {[%clk 00:29:42]} {[%emt
00:05:45]} Rc6 {[%clk 00:25:17]} {[%emt 00:02:30]} 43. Re5 {[%clk 00:30:01]}
{[%emt 00:00:11]} Kd7 {[%clk 00:24:50]} {[%emt 00:00:57]} 44. Nd5 {[%clk
00:30:04]} {[%emt 00:00:27]} Bd8 {[%clk 00:24:32]} {[%emt 00:00:49]} 45. Re4
{[%clk 00:23:33]} {[%emt 00:07:00]} Rd6 {[%clk 00:20:16]} {[%emt 00:04:46]} 46.
Ke2 {[%clk 00:22:17]} {[%emt 00:01:47]} Rc6 {[%clk 00:18:50]} {[%emt 00:01:55]}
47. Re3 {[%clk 00:21:23]} {[%emt 00:01:24]} Rd6 {[%clk 00:12:09]} {[%emt
00:07:10]} 48. Nc3 {[%clk 00:20:38]} {[%emt 00:01:15]} Rc6 {[%clk 00:09:23]}
{[%emt 00:03:16]} 49. Rd3+ {[%clk 00:18:45]} {[%emt 00:02:22]} Ke7 {[%clk
00:08:58]} {[%emt 00:00:56]} 50. Nb5 {[%clk 00:19:07]} {[%emt 00:00:07]} a6
{[%clk 00:08:34]} {[%emt 00:00:54]} 51. Nc3 {[%clk 00:19:28]} {[%emt 00:00:10]}
Ke8 {[%clk 00:07:43]} {[%emt 00:01:21]} 52. Nd5 {[%clk 00:19:16]} {[%emt
00:00:42]} Rd6 {[%clk 00:06:14]} {[%emt 00:01:59]} 53. Kf3 {[%clk 00:18:17]}
{[%emt 00:01:28]} Rc6 {[%clk 00:05:58]} {[%emt 00:00:46]} 54. Rd2 {[%clk
00:18:18]} {[%emt 00:00:30]} Rd6 {[%clk 00:05:23]} {[%emt 00:01:05]} 55. Rd1
{[%clk 00:18:42]} {[%emt 00:00:06]} Rc6 {[%clk 00:05:04]} {[%emt 00:00:49]} 56.
Rd3 {[%clk 00:14:36]} {[%emt 00:04:35]} Rd6 {[%clk 00:04:42]} {[%emt 00:00:53]}
57. Kf4 {[%clk 00:15:01]} {[%emt 00:00:06]} Rc6 {[%clk 00:04:37]} {[%emt
00:00:35]} 58. f3 {[%clk 00:14:21]} {[%emt 00:01:10]} Rd6 {[%clk 00:03:35]}
{[%emt 00:01:31]} 59. Rd1 {[%clk 00:08:37]} {[%emt 00:06:14]} Re6 {[%clk
00:02:27]} {[%emt 00:01:38]} 60. Rd3 {[%clk 00:05:48]} {[%emt 00:03:18]} Rc6
{[%clk 00:01:48]} {[%emt 00:01:09]} 61. Re3+ {[%clk 00:02:31]} {[%emt
00:03:47]} Kd7 {[%clk 00:01:46]} {[%emt 00:00:33]} 62. Re2 {[%clk 00:02:28]}
{[%emt 00:00:33]} Rd6 {[%clk 00:01:42]} {[%emt 00:00:34]} 63. g4 {[%clk
00:29:14]} {[%emt 00:03:43]} Re6 {[%clk 00:19:21]} {[%emt 00:12:52]} 64. Rd2
{[%clk 00:27:07]} {[%emt 00:02:37]} Ke8 {[%clk 00:18:46]} {[%emt 00:01:05]} 65.
g5 {[%clk 00:17:08]} {[%emt 00:10:30]} Rc6 {[%clk 00:17:12]} {[%emt 00:02:04]}
66. Rd3 {[%clk 00:16:48]} {[%emt 00:00:49]} Re6 {[%clk 00:15:43]} {[%emt
00:02:00]} 67. Rd1 {[%clk 00:17:11]} {[%emt 00:00:07]} Kf8 {[%clk 00:15:02]}
{[%emt 00:01:11]} 68. Kg3 {[%clk 00:16:19]} {[%emt 00:01:22]} Ke8 {[%clk
00:13:32]} {[%emt 00:02:00]} 69. Kf2 {[%clk 00:16:16]} {[%emt 00:00:33]} Rc6
{[%clk 00:13:21]} {[%emt 00:00:41]} 70. f4 {[%clk 00:16:24]} {[%emt 00:00:22]}
f5 {[%clk 00:13:03]} {[%emt 00:00:48]} 71. gxf6 {[%emt 00:00:56]} Bxf6 {[%clk
00:13:25]} 72. Kg3 {[%clk 00:15:55]} {[%emt 00:00:41]} Bd8 {[%clk 00:13:31]}
{[%emt 00:00:24]} 73. f5 {[%clk 00:10:52]} {[%emt 00:05:32]} gxf5 {[%clk
00:13:10]} {[%emt 00:00:53]} 74. Kf4 {[%clk 00:11:18]} {[%emt 00:00:03]} Rg6
{[%clk 00:12:27]} {[%emt 00:01:13]} 75. Rd3 {[%clk 00:10:22]} {[%emt 00:01:26]}
Rg4+ {[%clk 00:11:53]} {[%emt 00:01:04]} 76. Kxf5 {[%clk 00:10:45]} {[%emt
00:00:06]} Rxh4 {[%clk 00:12:17]} {[%emt 00:00:07]} 77. Rg3 {[%clk 00:11:01]}
{[%emt 00:00:13]} Rg4 {[%clk 00:08:16]} {[%emt 00:04:32]} 78. Rxg4 {[%clk
00:11:16]} {[%emt 00:00:15]} hxg4 {[%clk 00:08:45]} {[%emt 00:00:01]} 79. Kxg4
{[%clk 00:11:37]} {[%emt 00:00:09]} Kd7 {[%clk 00:09:13]} {[%emt 00:00:02]} 80.
Kf5 {[%clk 00:11:58]} {[%emt 00:00:09]} Kd6 {[%clk 00:09:24]} {[%emt 00:00:18]}
81. Nc3 {[%clk 00:11:04]} {[%emt 00:01:24]} Bh4 {[%clk 00:09:11]} {[%emt
00:00:44]} 82. Nd5 {[%clk 00:09:53]} {[%emt 00:01:42]} Bd8 {[%clk 00:09:06]}
{[%emt 00:00:35]} 83. Ke4 {[%clk 00:06:18]} {[%emt 00:04:05]} Ke6 {[%clk
00:08:59]} {[%emt 00:00:37]} 84. Kf4 {[%clk 00:06:42]} {[%emt 00:00:06]} b5
{[%clk 00:07:51]} {[%emt 00:01:38]} 85. Ke4 {[%clk 00:07:07]} {[%emt 00:00:05]}
bxa4 {[%clk 00:08:04]} {[%emt 00:00:17]} 86. bxa4 {[%clk 00:07:33]} {[%emt
00:00:04]} Ba5 {[%clk 00:08:12]} {[%emt 00:00:22]} 87. Nf4+ {[%clk 00:07:58]}
{[%emt 00:00:05]} Kd6 {[%clk 00:08:39]} {[%emt 00:00:03]} 88. Kf5 {[%clk
00:08:14]} {[%emt 00:00:13]} Bc3 {[%clk 00:08:48]} {[%emt 00:00:22]} 89. Nd5
{[%clk 00:06:57]} {[%emt 00:01:47]} Bd4 {[%clk 00:08:15]} {[%emt 00:01:03]} 90.
Nf6 {[%clk 00:07:12]} {[%emt 00:00:15]} Kc6 {[%clk 00:08:11]} {[%emt 00:00:33]}
91. Nd5 {[%clk 00:07:29]} {[%emt 00:00:14]} Kd6 {[%clk 00:08:39]} {[%emt
00:00:03]} 92. Ke4 {[%clk 00:07:53]} {[%emt 00:00:05]} Bh8 {[%clk 00:08:12]}
{[%emt 00:00:56]} 93. Kf5 {[%clk 00:06:26]} {[%emt 00:01:58]} Bd4 {[%clk
00:08:34]} {[%emt 00:00:08]} 94. Kg6 {[%clk 00:05:58]} {[%emt 00:00:58]} Ke5
{[%clk 00:07:33]} {[%emt 00:01:31]} 95. Kf7 {[%clk 00:05:11]} {[%emt 00:01:16]}
Bb2 {[%clk 00:07:39]} {[%emt 00:00:24]} 96. Nc7 {[%clk 00:04:05]} {[%emt
00:01:36]} Kd4 {[%clk 00:07:59]} {[%emt 00:00:10]} 97. Nxa6 {[%clk 00:04:30]}
{[%emt 00:00:05]} Kxc4 {[%clk 00:08:25]} {[%emt 00:00:05]} 98. Ke6 {[%clk
00:04:44]} {[%emt 00:00:15]} Ba3 {[%clk 00:08:30]} {[%emt 00:00:24]} 99. Nxc5
{[%clk 00:04:42]} {[%emt 00:00:32]} Bxc5 {[%clk 00:08:57]} {[%emt 00:00:03]}
100. Kd5+ {[%emt 00:00:10]} Kd4+ {[%emt 00:00:23]} 1/2-1/2